[Event "***Titled Tuesday 3|2 Blitz"]
[Site "Chess.com"]
[Date "2017.02.07"]
[Round "6"]
[White "Ilja_Semjonovs"]
[Black "Ar4uha"]
[Result "0-1"]
[WhiteElo "2179"]
[BlackElo "2434"]
[TimeControl "180+2"]
[EndTime "14:25:00 PST"]
[Termination "Ar4uha won on time"]

1. d4 {[%clk 0:03:02]} 1... Nf6 {[%clk 0:03:00]} 2. Nf3 {[%clk 0:03:03]} 2... e6
{[%clk 0:03:01]} 3. Bg5 {[%clk 0:03:03.5]} 3... c5 {[%clk 0:03:02.3]} 4. c3
{[%clk 0:03:02.4]} 4... Be7 {[%clk 0:03:03.4]} 5. Bxf6 {[%clk 0:03:02.2]} 5...
Bxf6 {[%clk 0:03:03.4]} 6. e3 {[%clk 0:03:03.7]} 6... b6 {[%clk 0:03:04.4]} 7.
Nbd2 {[%clk 0:03:04]} 7... Bb7 {[%clk 0:03:05.9]} 8. Bd3 {[%clk 0:03:05.6]} 8...
O-O {[%clk 0:03:06.8]} 9. O-O {[%clk 0:03:06.5]} 9... d6 {[%clk 0:03:06.4]} 10.
Qe2 {[%clk 0:02:53.9]} 10... Nd7 {[%clk 0:03:07.2]} 11. Rad1 {[%clk 0:02:54.7]}
11... Qc7 {[%clk 0:03:07.8]} 12. Bb1 {[%clk 0:02:54]} 12... g6 {[%clk
0:03:08.9]} 13. h4 {[%clk 0:02:47.4]} 13... Rfe8 {[%clk 0:03:07]} 14. h5 {[%clk
0:02:47.8]} 14... Rad8 {[%clk 0:03:06.4]} 15. hxg6 {[%clk 0:02:48.5]} 15... hxg6
{[%clk 0:03:08.3]} 16. Ne4 {[%clk 0:02:25.6]} 16... Bg7 {[%clk 0:03:07.1]} 17.
Neg5 {[%clk 0:02:22.3]} 17... Nf6 {[%clk 0:02:53.9]} 18. a3 {[%clk 0:01:59.9]}
18... Qe7 {[%clk 0:02:53.2]} 19. e4 {[%clk 0:01:49.6]} 19... Nh5 {[%clk
0:02:53.7]} 20. g3 {[%clk 0:01:07.4]} 20... Bh6 {[%clk 0:02:51.7]} 21. Nh3
{[%clk 0:01:07.5]} 21... Qf6 {[%clk 0:02:43]} 22. Kg2 {[%clk 0:00:51.5]} 22...
e5 {[%clk 0:02:17.7]} 23. dxe5 {[%clk 0:00:36.9]} 23... dxe5 {[%clk 0:02:19.6]}
24. Ba2 {[%clk 0:00:36]} 24... Bc8 {[%clk 0:02:17.6]} 25. Nhg1 {[%clk 0:00:36]}
25... Bg4 {[%clk 0:01:54.7]} 26. Rxd8 {[%clk 0:00:35]} 26... Rxd8 {[%clk
0:01:55.8]} 27. Rd1 {[%clk 0:00:33.5]} 27... Ng7 {[%clk 0:01:48.4]} 28. Rxd8+
{[%clk 0:00:25.7]} 28... Qxd8 {[%clk 0:01:50.3]} 29. Bxf7+ {[%clk 0:00:19.4]}
29... Kf8 {[%clk 0:01:34.7]} 30. Bxg6 {[%clk 0:00:19.6]} 30... Qf6 {[%clk
0:01:35.9]} 31. Bf5 {[%clk 0:00:18.8]} 31... Nxf5 {[%clk 0:01:34.3]} 32. exf5
{[%clk 0:00:19.6]} 32... Bg7 {[%clk 0:01:36.2]} 33. Qe4 {[%clk 0:00:14]} 33...
Bxf5 {[%clk 0:01:37.4]} 34. Qa8+ {[%clk 0:00:13.5]} 34... Kf7 {[%clk 0:01:39]}
35. Qxa7+ {[%clk 0:00:13.1]} 35... Kg8 {[%clk 0:01:40.6]} 36. Qa8+ {[%clk
0:00:13]} 36... Kh7 {[%clk 0:01:41.9]} 37. Qe8 {[%clk 0:00:07.7]} 37... Bg6
{[%clk 0:01:34.2]} 38. Qd7 {[%clk 0:00:07.2]} 38... Be4 {[%clk 0:01:25.3]} 39.
Qg4 {[%clk 0:00:05.7]} 39... Bc6 {[%clk 0:01:19.8]} 40. Kh2 {[%clk 0:00:03.1]}
40... Bh6 {[%clk 0:01:18]} 0-1

[Event "***Titled Tuesday 3|2 Blitz"]
[Site "Chess.com"]
[Date "2017.02.07"]
[Round "6"]
[White "3f32"]
[Black "Rikikits"]
[Result "0-1"]
[WhiteElo "2358"]
[BlackElo "2632"]
[TimeControl "180+2"]
[EndTime "14:25:02 PST"]
[Termination "Rikikits won by resignation"]

1. d4 {[%clk 0:03:02]} 1... Nf6 {[%clk 0:03:00.6]} 2. c4 {[%clk 0:03:02.2]} 2...
g6 {[%clk 0:03:02.5]} 3. Nc3 {[%clk 0:03:01.6]} 3... Bg7 {[%clk 0:03:01.8]} 4.
e4 {[%clk 0:03:02.2]} 4... O-O {[%clk 0:03:03.7]} 5. Bg5 {[%clk 0:03:01.8]} 5...
d6 {[%clk 0:03:03.9]} 6. h3 {[%clk 0:03:02.7]} 6... c5 {[%clk 0:03:04.6]} 7. d5
{[%clk 0:03:03.7]} 7... b5 {[%clk 0:03:04.7]} 8. cxb5 {[%clk 0:03:04]} 8... a6
{[%clk 0:03:05.6]} 9. a4 {[%clk 0:03:04.6]} 9... Nbd7 {[%clk 0:03:04.6]} 10. Nf3
{[%clk 0:02:57.8]} 10... axb5 {[%clk 0:03:02.8]} 11. Bxb5 {[%clk 0:02:47.2]}
11... Ba6 {[%clk 0:03:01.3]} 12. Nd2 {[%clk 0:02:41.6]} 12... Ne5 {[%clk
0:02:57.3]} 13. Qe2 {[%clk 0:02:40.9]} 13... Bxb5 {[%clk 0:02:50.7]} 14. Nxb5
{[%clk 0:02:40.7]} 14... h6 {[%clk 0:02:42.4]} 15. Bf4 {[%clk 0:02:38.3]} 15...
Nfd7 {[%clk 0:02:39.1]} 16. O-O {[%clk 0:02:38.3]} 16... g5 {[%clk 0:02:39.2]}
17. Be3 {[%clk 0:02:37.9]} 17... Ng6 {[%clk 0:02:39.5]} 18. g3 {[%clk
0:02:35.4]} 18... Bxb2 {[%clk 0:02:25]} 19. Ra2 {[%clk 0:02:36.2]} 19... Bg7
{[%clk 0:02:25.3]} 20. Nc4 {[%clk 0:02:37]} 20... Nb6 {[%clk 0:02:21.1]} 21.
Nxb6 {[%clk 0:02:35.2]} 21... Qxb6 {[%clk 0:02:23]} 22. f4 {[%clk 0:02:35.6]}
22... gxf4 {[%clk 0:02:21.4]} 23. gxf4 {[%clk 0:02:37.5]} 23... Kh7 {[%clk
0:02:21.7]} 24. Kh2 {[%clk 0:02:37.4]} 24... Rg8 {[%clk 0:02:20.8]} 25. Qh5
{[%clk 0:02:32.7]} 25... Rxa4 {[%clk 0:02:14.7]} 26. Rxa4 {[%clk 0:02:30.6]}
26... Qxb5 {[%clk 0:02:15.1]} 27. Qd1 {[%clk 0:02:27]} 27... Nh4 {[%clk
0:02:08.5]} 28. Ra2 {[%clk 0:02:24.8]} 28... Qc4 {[%clk 0:02:03.5]} 29. Ra4
{[%clk 0:02:20.6]} 29... Qc3 {[%clk 0:02:01.8]} 30. Qd2 {[%clk 0:02:17.1]} 30...
Qxd2+ {[%clk 0:01:58.9]} 31. Bxd2 {[%clk 0:02:19]} 31... Bd4 {[%clk 0:02:00.8]}
32. Be1 {[%clk 0:02:08.4]} 32... Ng2 {[%clk 0:01:50.9]} 33. Bg3 {[%clk
0:02:04.5]} 33... Ne3 {[%clk 0:01:50.1]} 34. Rc1 {[%clk 0:01:55.7]} 34... Rb8
{[%clk 0:01:47.8]} 35. h4 {[%clk 0:01:52.1]} 35... h5 {[%clk 0:01:44.2]} 36. Ra2
{[%clk 0:01:48.2]} 36... Rb3 {[%clk 0:01:43.3]} 37. Re2 {[%clk 0:01:18]} 37...
c4 {[%clk 0:01:41.7]} 38. Kh1 {[%clk 0:01:10.9]} 38... Rd3 {[%clk 0:01:30.7]}
39. Bf2 {[%clk 0:01:08]} 39... c3 {[%clk 0:01:23.4]} 40. Rce1 {[%clk 0:00:48.6]}
40... c2 {[%clk 0:01:23.2]} 41. Bxe3 {[%clk 0:00:48.4]} 41... Rxe3 {[%clk
0:01:23.8]} 42. Rxc2 {[%clk 0:00:24.3]} 42... Rxe1+ {[%clk 0:01:23.7]} 43. Kg2
{[%clk 0:00:26.2]} 43... Rxe4 {[%clk 0:01:24]} 44. Rc7 {[%clk 0:00:26.1]} 44...
Bf6 {[%clk 0:01:23.6]} 0-1

[Event "***Titled Tuesday 3|2 Blitz"]
[Site "Chess.com"]
[Date "2017.02.07"]
[Round "6"]
[White "lucasmito"]
[Black "Shivagami"]
[Result "0-1"]
[WhiteElo "1776"]
[BlackElo "1986"]
[TimeControl "180+2"]
[EndTime "14:25:18 PST"]
[Termination "Shivagami won on time"]

1. e4 {[%clk 0:03:01.1]} 1... Nc6 {[%clk 0:02:57.9]} 2. Nf3 {[%clk 0:03:00.4]}
2... d6 {[%clk 0:02:57.5]} 3. d4 {[%clk 0:02:57.1]} 3... Nf6 {[%clk 0:02:57.8]}
4. Nc3 {[%clk 0:02:56.5]} 4... Bg4 {[%clk 0:02:56.6]} 5. Bb5 {[%clk 0:02:52.3]}
5... a6 {[%clk 0:02:47.5]} 6. Bxc6+ {[%clk 0:02:37.7]} 6... bxc6 {[%clk
0:02:48.2]} 7. h3 {[%clk 0:02:38.2]} 7... Bh5 {[%clk 0:02:47.8]} 8. g4 {[%clk
0:02:38.1]} 8... Bg6 {[%clk 0:02:47.7]} 9. Qe2 {[%clk 0:02:10.7]} 9... e6 {[%clk
0:02:46.6]} 10. Bg5 {[%clk 0:02:02.5]} 10... Be7 {[%clk 0:02:45.9]} 11. O-O-O
{[%clk 0:01:38.1]} 11... h6 {[%clk 0:02:16.1]} 12. Bxf6 {[%clk 0:01:09.1]} 12...
Bxf6 {[%clk 0:02:15.2]} 13. h4 {[%clk 0:01:05.7]} 13... d5 {[%clk 0:02:03.8]}
14. g5 {[%clk 0:00:52.2]} 14... Be7 {[%clk 0:01:49.8]} 15. h5 {[%clk 0:00:34.7]}
15... Bh7 {[%clk 0:01:48.7]} 16. exd5 {[%clk 0:00:31.7]} 16... Bxg5+ {[%clk
0:01:45.9]} 17. Kb1 {[%clk 0:00:18.5]} 17... cxd5 {[%clk 0:01:45]} 18. Rhg1
{[%clk 0:00:15.5]} 18... Bf6 {[%clk 0:01:44.5]} 19. Ne5 {[%clk 0:00:12.6]} 19...
Qd6 {[%clk 0:01:39.3]} 20. f4 {[%clk 0:00:10.7]} 20... Rb8 {[%clk 0:01:35.6]}
21. b3 {[%clk 0:00:11.7]} 21... Ke7 {[%clk 0:01:18.3]} 22. Kb2 {[%clk
0:00:09.2]} 22... Rb7 {[%clk 0:01:15.1]} 23. Na4 {[%clk 0:00:05.9]} 23... Rhb8
{[%clk 0:00:54.3]} 24. Nc5 {[%clk 0:00:04.7]} 24... Rb6 {[%clk 0:00:52.1]} 25.
Rg3 {[%clk 0:00:05.8]} 25... a5 {[%clk 0:00:51.4]} 26. a4 {[%clk 0:00:04.8]}
26... Rd8 {[%clk 0:00:32.3]} 27. Rc3 {[%clk 0:00:05.5]} 27... c6 {[%clk
0:00:31.7]} 28. Ncd3 {[%clk 0:00:04.9]} 28... Rdb8 {[%clk 0:00:31]} 29. Rc5
{[%clk 0:00:05.4]} 29... Bxd3 {[%clk 0:00:30.5]} 30. Nxd3 {[%clk 0:00:05.7]}
30... Bxd4+ {[%clk 0:00:30]} 0-1

[Event "***Titled Tuesday 3|2 Blitz"]
[Site "Chess.com"]
[Date "2017.02.07"]
[Round "6"]
[White "Kacparov"]
[Black "RoelandPruijssers"]
[Result "0-1"]
[WhiteElo "2568"]
[BlackElo "2495"]
[TimeControl "180+2"]
[EndTime "14:25:20 PST"]
[Termination "RoelandPruijssers won by checkmate"]

1. e4 {[%clk 0:03:00.6]} 1... e5 {[%clk 0:03:00.1]} 2. a3 {[%clk 0:02:51.4]}
2... Nf6 {[%clk 0:02:59.7]} 3. Nc3 {[%clk 0:02:52]} 3... d5 {[%clk 0:02:53]} 4.
exd5 {[%clk 0:02:52]} 4... Nxd5 {[%clk 0:02:54.2]} 5. Qf3 {[%clk 0:02:42.5]}
5... Nb6 {[%clk 0:02:38.9]} 6. Bb5+ {[%clk 0:02:40.2]} 6... c6 {[%clk
0:02:38.2]} 7. Bd3 {[%clk 0:02:41.1]} 7... Be7 {[%clk 0:02:29]} 8. Nge2 {[%clk
0:02:40.6]} 8... O-O {[%clk 0:02:26.6]} 9. Ng3 {[%clk 0:02:37]} 9... g6 {[%clk
0:02:25.7]} 10. Be2 {[%clk 0:02:32.5]} 10... f5 {[%clk 0:02:25.3]} 11. d3 {[%clk
0:02:33.7]} 11... N8d7 {[%clk 0:02:17.1]} 12. Bh6 {[%clk 0:02:31.3]} 12... Rf7
{[%clk 0:02:14.9]} 13. O-O-O {[%clk 0:02:30.5]} 13... Nf6 {[%clk 0:02:04.6]} 14.
h3 {[%clk 0:02:28.9]} 14... Nfd5 {[%clk 0:01:58.6]} 15. Nxd5 {[%clk 0:02:27.1]}
15... cxd5 {[%clk 0:01:43.6]} 16. Kb1 {[%clk 0:02:07.3]} 16... f4 {[%clk
0:01:32.8]} 17. Nf1 {[%clk 0:02:05.8]} 17... Be6 {[%clk 0:01:20.6]} 18. Nd2
{[%clk 0:02:03.9]} 18... Rc8 {[%clk 0:01:21.5]} 19. g3 {[%clk 0:01:58.1]} 19...
Na4 {[%clk 0:00:55.7]} 20. Nb3 {[%clk 0:01:54.6]} 20... Bxa3 {[%clk 0:00:47.9]}
21. bxa3 {[%clk 0:01:49.9]} 21... Nc3+ {[%clk 0:00:38.5]} 22. Kb2 {[%clk
0:01:50.9]} 22... Na4+ {[%clk 0:00:25.8]} 23. Kb1 {[%clk 0:01:46.9]} 23... Qc7
{[%clk 0:00:26.2]} 24. c4 {[%clk 0:01:45.1]} 24... e4 {[%clk 0:00:22]} 25. dxe4
{[%clk 0:01:44.6]} 25... dxe4 {[%clk 0:00:23.2]} 26. Bxf4 {[%clk 0:01:31.5]}
26... exf3 {[%clk 0:00:22.3]} 27. Bxc7 {[%clk 0:01:32.3]} 27... fxe2 {[%clk
0:00:22.9]} 28. Rd8+ {[%clk 0:01:30.6]} 28... Rxd8 {[%clk 0:00:23.2]} 29. Bxd8
{[%clk 0:01:31.8]} 29... Rxf2 {[%clk 0:00:23.3]} 30. Re1 {[%clk 0:01:33]} 30...
Bxc4 {[%clk 0:00:18.4]} 31. Nd4 {[%clk 0:01:26]} 31... Nc3+ {[%clk 0:00:18.2]}
32. Kb2 {[%clk 0:01:25.3]} 32... Ne4 {[%clk 0:00:18.6]} 33. g4 {[%clk
0:01:13.8]} 33... b6 {[%clk 0:00:19.6]} 34. Nc2 {[%clk 0:00:45.1]} 34... Nc5
{[%clk 0:00:18]} 35. Kc3 {[%clk 0:00:42.9]} 35... Ba6 {[%clk 0:00:18.1]} 36. Bh4
{[%clk 0:00:35.5]} 36... Rh2 {[%clk 0:00:17.4]} 37. Kd2 {[%clk 0:00:22.9]} 37...
Rxh3 {[%clk 0:00:16.8]} 38. Be7 {[%clk 0:00:21]} 38... Nb3# {[%clk 0:00:17.5]}
0-1

[Event "***Titled Tuesday 3|2 Blitz"]
[Site "Chess.com"]
[Date "2017.02.07"]
[Round "6"]
[White "kpio91"]
[Black "Durarbayli"]
[Result "1-0"]
[WhiteElo "2535"]
[BlackElo "2609"]
[TimeControl "180+2"]
[EndTime "14:25:21 PST"]
[Termination "kpio91 won on time"]

1. e4 {[%clk 0:03:02]} 1... e5 {[%clk 0:02:59.9]} 2. Nf3 {[%clk 0:03:02.9]} 2...
Nc6 {[%clk 0:03:00.8]} 3. Bc4 {[%clk 0:03:02.8]} 3... Bc5 {[%clk 0:02:59.4]} 4.
O-O {[%clk 0:03:03.9]} 4... Nf6 {[%clk 0:03:00]} 5. d3 {[%clk 0:03:04.3]} 5...
d6 {[%clk 0:02:59.3]} 6. c3 {[%clk 0:02:59.7]} 6... O-O {[%clk 0:02:54.5]} 7.
Bg5 {[%clk 0:02:59.9]} 7... h6 {[%clk 0:02:53.7]} 8. Bh4 {[%clk 0:03:01]} 8...
Re8 {[%clk 0:02:53.4]} 9. a4 {[%clk 0:02:52.1]} 9... a6 {[%clk 0:02:51.4]} 10.
Nbd2 {[%clk 0:02:44.3]} 10... Be6 {[%clk 0:02:43.5]} 11. a5 {[%clk 0:02:40.9]}
11... Ba7 {[%clk 0:02:35.7]} 12. Bxe6 {[%clk 0:02:36.5]} 12... fxe6 {[%clk
0:02:32.7]} 13. Nc4 {[%clk 0:02:17.6]} 13... g5 {[%clk 0:02:26.5]} 14. Bg3
{[%clk 0:02:18.6]} 14... Ne7 {[%clk 0:02:24.5]} 15. Re1 {[%clk 0:02:10]} 15...
Ng6 {[%clk 0:02:23.2]} 16. d4 {[%clk 0:02:09.2]} 16... exd4 {[%clk 0:02:20.5]}
17. Nxd4 {[%clk 0:02:03.7]} 17... Bxd4 {[%clk 0:02:17.9]} 18. cxd4 {[%clk
0:01:58.9]} 18... Nh7 {[%clk 0:02:12.6]} 19. Qh5 {[%clk 0:01:44.7]} 19... Kg7
{[%clk 0:02:11]} 20. e5 {[%clk 0:01:45.9]} 20... d5 {[%clk 0:02:06.7]} 21. Ne3
{[%clk 0:01:47]} 21... Rh8 {[%clk 0:02:06.3]} 22. Ng4 {[%clk 0:01:45.9]} 22...
Nhf8 {[%clk 0:02:06.6]} 23. Rf1 {[%clk 0:01:37.4]} 23... Qe8 {[%clk 0:02:00]}
24. Nf6 {[%clk 0:01:35.5]} 24... Qf7 {[%clk 0:01:56.4]} 25. Qg4 {[%clk
0:01:26.5]} 25... Ne7 {[%clk 0:01:52.4]} 26. f4 {[%clk 0:01:23.4]} 26... Nf5
{[%clk 0:01:51.6]} 27. fxg5 {[%clk 0:01:23.6]} 27... h5 {[%clk 0:01:50]} 28. Qf4
{[%clk 0:01:18.4]} 28... Ng6 {[%clk 0:01:47.3]} 29. Qd2 {[%clk 0:01:19.3]} 29...
h4 {[%clk 0:01:42.2]} 30. Bf2 {[%clk 0:01:17.1]} 30... c6 {[%clk 0:01:33.2]} 31.
Ra3 {[%clk 0:01:17.3]} 31... Rac8 {[%clk 0:01:23.4]} 32. g4 {[%clk 0:01:05.8]}
32... hxg3 {[%clk 0:01:23]} 33. hxg3 {[%clk 0:01:06.9]} 33... c5 {[%clk
0:01:23.3]} 34. g4 {[%clk 0:01:07.6]} 34... Nfe7 {[%clk 0:01:12]} 35. Be1 {[%clk
0:00:53.2]} 35... Kf8 {[%clk 0:01:06]} 36. Nd7+ {[%clk 0:00:51.2]} 36... Ke8
{[%clk 0:01:05.8]} 37. Rxf7 {[%clk 0:00:52.1]} 37... Kxf7 {[%clk 0:01:06]} 38.
Qf2+ {[%clk 0:00:47.9]} 38... Ke8 {[%clk 0:01:06.2]} 39. Nxc5 {[%clk 0:00:48.2]}
1-0

[Event "***Titled Tuesday 3|2 Blitz"]
[Site "Chess.com"]
[Date "2017.02.07"]
[Round "6"]
[White "vellottiwizard"]
[Black "BillieKimbah"]
[Result "0-1"]
[WhiteElo "2539"]
[BlackElo "2603"]
[TimeControl "180+2"]
[EndTime "14:25:40 PST"]
[Termination "BillieKimbah won by resignation"]

1. e4 {[%clk 0:03:02]} 1... e5 {[%clk 0:02:58.8]} 2. Nf3 {[%clk 0:03:03.5]} 2...
Nc6 {[%clk 0:02:58.8]} 3. Bb5 {[%clk 0:03:05]} 3... a6 {[%clk 0:02:59.3]} 4. Ba4
{[%clk 0:03:06.5]} 4... Nf6 {[%clk 0:03:00.9]} 5. O-O {[%clk 0:03:07.9]} 5...
Be7 {[%clk 0:03:02.3]} 6. d4 {[%clk 0:03:09.1]} 6... exd4 {[%clk 0:03:01]} 7.
Re1 {[%clk 0:03:10.4]} 7... b5 {[%clk 0:02:58.9]} 8. e5 {[%clk 0:03:11.4]} 8...
Nxe5 {[%clk 0:02:58.1]} 9. Nxe5 {[%clk 0:03:13.3]} 9... bxa4 {[%clk 0:02:59.1]}
10. Qxd4 {[%clk 0:03:15]} 10... O-O {[%clk 0:02:57.3]} 11. Qxa4 {[%clk
0:03:16.5]} 11... Rb8 {[%clk 0:02:53.4]} 12. Nc3 {[%clk 0:03:16.9]} 12... Rb4
{[%clk 0:02:46.9]} 13. Qa5 {[%clk 0:03:17.3]} 13... Bb7 {[%clk 0:02:38]} 14. a3
{[%clk 0:02:33.8]} 14... Rh4 {[%clk 0:02:37.8]} 15. h3 {[%clk 0:02:22.3]} 15...
Rh5 {[%clk 0:02:27.1]} 16. Qa4 {[%clk 0:02:22.9]} 16... Bd6 {[%clk 0:02:15.9]}
17. Nc4 {[%clk 0:02:16.7]} 17... Bc5 {[%clk 0:02:13.6]} 18. Be3 {[%clk
0:02:14.3]} 18... Qa8 {[%clk 0:01:57.3]} 19. f3 {[%clk 0:01:32.5]} 19... Bxf3
{[%clk 0:01:52.7]} 20. Bxc5 {[%clk 0:01:33.6]} 20... Rxc5 {[%clk 0:01:40.7]} 21.
Ne3 {[%clk 0:01:14.9]} 21... Re8 {[%clk 0:01:24.3]} 22. Qf4 {[%clk 0:01:11.1]}
22... Bh5 {[%clk 0:01:17.2]} 23. Nf5 {[%clk 0:00:57.1]} 23... Bg6 {[%clk
0:01:09.8]} 24. Nd4 {[%clk 0:00:48.6]} 24... d6 {[%clk 0:01:06.7]} 25. Nf3
{[%clk 0:00:45.6]} 25... Bxc2 {[%clk 0:01:02.1]} 26. Rxe8+ {[%clk 0:00:46.7]}
26... Qxe8 {[%clk 0:01:03]} 27. Re1 {[%clk 0:00:48.3]} 27... Qd8 {[%clk
0:01:00.6]} 28. Qd2 {[%clk 0:00:26.5]} 28... Bg6 {[%clk 0:01:00.2]} 29. b4
{[%clk 0:00:27.8]} 29... Rf5 {[%clk 0:00:46.6]} 30. Qe2 {[%clk 0:00:21.2]} 30...
h6 {[%clk 0:00:46.4]} 31. Qxa6 {[%clk 0:00:21.7]} 31... Rf4 {[%clk 0:00:37.3]}
32. Ne2 {[%clk 0:00:16.8]} 32... Re4 {[%clk 0:00:37]} 33. Ned4 {[%clk 0:00:18]}
33... c5 {[%clk 0:00:36.4]} 34. Nc6 {[%clk 0:00:15.6]} 34... Qe8 {[%clk
0:00:37.1]} 35. Rd1 {[%clk 0:00:15]} 35... Re2 {[%clk 0:00:33.8]} 36. bxc5
{[%clk 0:00:12.2]} 36... Qe3+ {[%clk 0:00:34.4]} 37. Kh1 {[%clk 0:00:13.8]}
37... Be4 {[%clk 0:00:35.8]} 38. Rf1 {[%clk 0:00:07.4]} 38... Nh5 {[%clk
0:00:33.9]} 39. Ne7+ {[%clk 0:00:03.9]} 39... Kh7 {[%clk 0:00:34.4]} 40. Qxd6
{[%clk 0:00:05.6]} 40... Bxf3 {[%clk 0:00:28.9]} 41. Rxf3 {[%clk 0:00:07.5]}
41... Re1+ {[%clk 0:00:29.1]} 0-1

[Event "***Titled Tuesday 3|2 Blitz"]
[Site "Chess.com"]
[Date "2017.02.07"]
[Round "6"]
[White "Pierrebl"]
[Black "Blitzstream"]
[Result "1/2-1/2"]
[WhiteElo "2400"]
[BlackElo "2441"]
[TimeControl "180+2"]
[EndTime "14:25:53 PST"]
[Termination "Game drawn by repetition"]

1. Nf3 {[%clk 0:03:02]} 1... e6 {[%clk 0:02:59.4]} 2. c4 {[%clk 0:02:58.2]} 2...
g5 {[%clk 0:03:00.3]} 3. d4 {[%clk 0:02:41.4]} 3... g4 {[%clk 0:02:58.4]} 4. Ne5
{[%clk 0:02:38.7]} 4... h5 {[%clk 0:02:58.6]} 5. Nc3 {[%clk 0:02:38.8]} 5... d6
{[%clk 0:02:57.9]} 6. Nd3 {[%clk 0:02:39.5]} 6... f5 {[%clk 0:02:58.2]} 7. e4
{[%clk 0:02:38.5]} 7... Nf6 {[%clk 0:02:58.4]} 8. Bg5 {[%clk 0:02:31.4]} 8...
Be7 {[%clk 0:02:57.4]} 9. exf5 {[%clk 0:02:25]} 9... exf5 {[%clk 0:02:54.7]} 10.
Qc2 {[%clk 0:02:17]} 10... Nc6 {[%clk 0:02:52.5]} 11. Be3 {[%clk 0:01:40.5]}
11... O-O {[%clk 0:02:53.3]} 12. O-O-O {[%clk 0:01:40.7]} 12... d5 {[%clk
0:02:21.2]} 13. Nf4 {[%clk 0:01:37.7]} 13... Nb4 {[%clk 0:02:12.6]} 14. Qb3
{[%clk 0:01:36.9]} 14... a5 {[%clk 0:02:09.3]} 15. cxd5 {[%clk 0:01:31.7]} 15...
Bd6 {[%clk 0:01:58]} 16. a3 {[%clk 0:01:25.7]} 16... Bxf4 {[%clk 0:01:14.6]} 17.
Bxf4 {[%clk 0:01:26.4]} 17... Nbxd5 {[%clk 0:01:15.1]} 18. Bc4 {[%clk
0:01:22.7]} 18... c6 {[%clk 0:01:12.3]} 19. Be5 {[%clk 0:01:23.9]} 19... Be6
{[%clk 0:00:59.7]} 20. Bxf6 {[%clk 0:01:11.5]} 20... Rxf6 {[%clk 0:00:58.9]} 21.
Rhe1 {[%clk 0:01:04.3]} 21... a4 {[%clk 0:00:58.6]} 22. Qxb7 {[%clk 0:00:52.7]}
22... Rb8 {[%clk 0:00:50.7]} 23. Qa7 {[%clk 0:00:48.4]} 23... Nxc3 {[%clk
0:00:44.8]} 24. Rxe6 {[%clk 0:00:43.5]} 24... Rxe6 {[%clk 0:00:16.8]} 25. Bxe6+
{[%clk 0:00:43.8]} 25... Kh8 {[%clk 0:00:17.7]} 26. bxc3 {[%clk 0:00:38.3]}
26... Qd6 {[%clk 0:00:11.7]} 27. Kc2 {[%clk 0:00:22.4]} 27... Re8 {[%clk
0:00:07.7]} 28. Re1 {[%clk 0:00:19.3]} 28... Rxe6 {[%clk 0:00:06.7]} 29. Rxe6
{[%clk 0:00:19.5]} 29... Qxe6 {[%clk 0:00:08.6]} 30. Qb8+ {[%clk 0:00:20.1]}
30... Kh7 {[%clk 0:00:09.3]} 31. Qc7+ {[%clk 0:00:19.6]} 31... Kg6 {[%clk
0:00:10.6]} 32. Qe5 {[%clk 0:00:17.8]} 32... Qa2+ {[%clk 0:00:11.7]} 33. Kd3
{[%clk 0:00:18]} 33... Qb1+ {[%clk 0:00:11.4]} 34. Kd2 {[%clk 0:00:15.9]} 34...
Qb2+ {[%clk 0:00:11.6]} 35. Kd3 {[%clk 0:00:17.2]} 35... Qb1+ {[%clk 0:00:13.1]}
36. Kd2 {[%clk 0:00:18.5]} 36... Qb2+ {[%clk 0:00:14]} 37. Kd3 {[%clk
0:00:19.9]} 37... Qxa3 {[%clk 0:00:15.3]} 38. Qe6+ {[%clk 0:00:20.1]} 38... Kg5
{[%clk 0:00:10]} 39. Qe3+ {[%clk 0:00:21]} 39... Kf6 {[%clk 0:00:10.9]} 40. Qh6+
{[%clk 0:00:21.8]} 40... Kf7 {[%clk 0:00:11.8]} 41. Qxh5+ {[%clk 0:00:22.4]}
41... Kf6 {[%clk 0:00:12.4]} 42. Qh6+ {[%clk 0:00:23.6]} 42... Kf7 {[%clk
0:00:13.9]} 43. Qh5+ {[%clk 0:00:23.7]} 43... Kf6 {[%clk 0:00:14.9]} 44. Qh6+
{[%clk 0:00:25.1]} 44... Kf7 {[%clk 0:00:16.4]} 45. Qh5+ {[%clk 0:00:24.6]}
45... Kf6 {[%clk 0:00:17.8]} 1/2-1/2